bitfinex/quotes_SOLUSD_20220218
["timestamp","ask_amount","ask_price","bid_price","bid_amount"]
[1645210729850,44.90914373,90.752,90.71,17.54208105]
[1645210731251,5.51,90.769,90.71,17.54208105]
[1645210731453,1.55722331,90.781,90.72,16.5391]
[1645210731655,111.6,90.786,90.721,30.1308]
[1645210731852,111.6,90.786,90.721,32.7601831]
[1645210732061,111.6,90.786,90.722,2.6293831]
[1645210732261,46.07903075,90.785,90.723,5.509]
[1645210732659,46.07903075,90.785,90.73,16.5377]
[1645210732861,46.07903075,90.785,90.731,5.509]
[1645210733458,46.07903075,90.785,90.732,22.655]
[1645210735561,46.07903075,90.785,90.74,16.5371]
[1645210736779,24.6339,90.788,90.74,16.5371]
[1645210736978,24.6339,90.788,90.741,8.1373831]
[1645210737175,24.6339,90.788,90.75,16.5353]
[1645210737775,42.50223025,90.787,90.75,16.5353]
[1645210738376,24.6339,90.788,90.75,16.5353]
[1645210739478,41.21544959,90.787,90.75,16.5353]
[1645210740279,0.56162854,90.784,90.75,16.5353]
[1645210742680,0.56162854,90.784,90.751,5.508]
[1645210743284,0.56162854,90.784,90.752,24.7633]
[1645210743482,0.56162854,90.784,90.76,16.5325]
[1645210743701,0.56162854,90.784,90.761,5.508]
[1645210743890,0.56162854,90.784,90.761,8.1373831]
[1645210744690,0.56162854,90.784,90.761,5.508]
[1645210744891,0.56162854,90.784,90.77,16.5294]
[1645210745491,0.56257625,90.812,90.771,5.508]
[1645210745691,0.56257625,90.812,90.763,5.507]
[1645210745891,0.56257625,90.812,90.763,8.1363831]
[1645210746094,55.23154167,90.811,90.77,16.5317]
[1645210747194,5.507,90.81,90.77,16.5317]
[1645210747493,5.507,90.81,90.762,23.6031]
[1645210747494,7.06422331,90.81,90.762,23.6031]
[1645210748191,55.23154167,90.811,90.762,23.6031]
[1645210748792,5.507,90.81,90.762,23.6031]
[1645210749795,55.23154167,90.811,90.762,23.6031]
[1645210749995,0.56257625,90.812,90.762,23.6031]
[1645210750197,0.56528286,90.811,90.763,5.507]
[1645210750596,0.56528286,90.811,90.763,8.1363831]
[1645210750798,0.56528286,90.811,90.764,2.6293831]
[1645210750995,0.56528286,90.811,90.77,16.5315]
[1645210751195,0.56528286,90.811,90.771,5.507]
[1645210751396,0.56528286,90.811,90.78,16.02]
[1645210752196,0.60528286,90.811,90.781,23.7386]
[1645210753999,0.60528286,90.811,90.79,16.5278]
[1645210754599,0.60528286,90.811,90.791,2.6293831]
[1645210754799,0.04,90.811,90.791,2.6293831]
[1645210756303,0.04,90.811,90.791,25.4072831]
[1645210756502,0.04,90.811,90.791,22.7779]
[1645210759903,0.04,90.811,90.793,0.98753452]
[1645210762425,1.55722331,90.827,90.793,0.98753452]
[1645210762605,1.55722331,90.828,90.793,0.98753452]
[1645210762805,1.55722331,90.827,90.793,0.98753452]
[1645210763205,1.55722331,90.826,90.793,0.98753452]
[1645210763908,1.55722331,90.816,90.793,0.98753452]
[1645210764206,1.55722331,90.808,90.793,0.98753452]
[1645210764406,1.55722331,90.805,90.793,0.98753452]
[1645210764607,7.06322331,90.804,90.793,0.98753452]
[1645210764810,4.00722331,90.803,90.793,0.98753452]
[1645210765008,5.506,90.802,90.761,0.98722966]
[1645210765208,1.55722331,90.801,90.761,0.98722966]
[1645210765609,2.45,90.803,90.762,5.507]
[1645210766011,2.45,90.803,90.762,29.1805]
[1645210766210,24.98042331,90.809,90.762,23.6735]
[1645210766611,1.55722331,90.808,90.762,23.6735]
[1645210767211,1.55722331,90.809,90.77,16.5302]
[1645210767411,1.55722331,90.812,90.77,16.5302]
[1645210767610,0.04,90.809,90.77,16.5302]
[1645210768217,0.04,90.809,90.762,29.1805]
[1645210768417,1.55722331,90.801,90.762,23.6735]
[1645210769020,1.55722331,90.803,90.762,23.6735]
[1645210769220,1.55722331,90.802,90.762,23.6735]
[1645210769422,1.55722331,90.801,90.762,23.6735]
[1645210769620,1.55722331,90.797,90.762,23.6735]
[1645210770038,1.55722331,90.795,90.762,23.6735]
[1645210770436,1.55722331,90.795,90.75,16.5336]
[1645210770738,1.55722331,90.797,90.75,16.5336]
[1645210770938,1.55722331,90.796,90.75,16.5336]
[1645210772940,0.04,90.794,90.75,16.5336]
[1645210773740,0.04,90.794,90.76,16.02]
[1645210773941,0.04,90.794,90.77,16.5304]
[1645210774141,0.04,90.794,90.77,32.5504]
[1645210774341,0.04,90.794,90.771,22.8916]
[1645210774742,0.04,90.794,90.772,5.507]
[1645210775147,0.60298224,90.794,90.771,22.8916]
[1645210775544,0.60298224,90.794,90.77,16.02]
[1645210778347,0.60298224,90.794,90.76,16.532]
[1645210778548,0.60298224,90.794,90.761,22.6624]
[1645210778848,0.60298224,90.794,90.75,16.5338]
[1645210779047,0.60298224,90.794,90.73,55.108]
[1645210779048,1.55722331,90.793,90.731,23.8972]
[1645210779248,7.06522331,90.793,90.731,23.8972]
[1645210779447,0.60298224,90.794,90.732,5.508]
[1645210779448,1.55722331,90.789,90.732,5.508]
[1645210779652,1.55722331,90.789,90.773,0.99060965]
[1645210779847,1.55722331,90.787,90.773,0.99060965]
[1645210780048,1.55722331,90.791,90.773,0.99060965]
[1645210780351,1.55722331,90.793,90.773,0.99060965]
[1645210782349,1.59722331,90.794,90.773,0.99060965]
[1645210782953,0.04,90.793,90.773,0.99060965]
[1645210783549,1.55722331,90.792,90.773,0.99060965]
[1645210783749,1.55722331,90.791,90.773,0.99060965]
[1645210784751,0.04,90.793,90.741,24.62360465]
[1645210784952,1.59722331,90.793,90.741,24.62360465]
[1645210786454,7.06522331,90.792,90.741,24.62360465]
[1645210786854,1.55722331,90.789,90.741,24.62360465]
[1645210787054,5.508,90.788,90.741,24.62360465]
[1645210787256,1.55722331,90.786,90.741,24.62360465]
[1645210787653,1.55722331,90.788,90.741,0.99030465]
[1645210787854,111.6,90.786,90.741,0.99030465]
[1645210788058,1.55722331,90.783,90.741,0.99030465]
[1645210788655,1.55722331,90.782,90.741,0.99030465]
[1645210789054,1.55722331,90.781,90.741,0.99030465]
[1645210789457,18.09722331,90.78,90.741,0.99030465]
[1645210789857,16.54,90.78,90.741,0.99030465]
[1645210790058,16.54,90.78,90.725,23.63438622]
[1645210790458,18.09722331,90.78,90.725,23.63438622]
[1645210790659,1.55722331,90.773,90.725,23.63438622]
[1645210790861,113.15722331,90.769,90.725,0.99518622]
[1645210791059,111.6,90.767,90.725,0.99518622]
[1645210791260,1.55722331,90.764,90.725,0.99518622]
[1645210791461,1.55722331,90.757,90.725,0.99518622]
[1645210791662,117.11,90.756,90.725,0.99518622]
[1645210792259,118.66722331,90.756,90.725,0.99518622]
[1645210792458,117.11,90.756,90.725,0.99518622]
[1645210792660,5.51,90.756,90.725,0.99518622]
[1645210792859,7.06722331,90.758,90.725,0.99518622]
[1645210793062,1.55722331,90.757,90.725,0.99518622]
[1645210793259,5.51,90.756,90.725,0.99518622]
[1645210793462,16.5459,90.75,90.725,0.99518622]
[1645210794860,16.5459,90.75,90.691,29.4948283]
[1645210797064,16.5459,90.75,90.691,23.9858283]
[1645210797963,16.5459,90.75,90.691,29.4968283]
[1645210798666,16.5859,90.75,90.691,29.4968283]
[1645210798863,16.5859,90.75,90.691,23.9858283]
[1645210799563,111.6,90.749,90.691,23.9858283]
[1645210799764,0.55688822,90.749,90.691,28.4992]
[1645210799968,5.511,90.748,90.691,22.9882]
[1645210800164,111.6,90.747,90.691,22.9882]
[1645210800365,5.511,90.746,90.691,22.9882]
[1645210800566,5.511,90.748,90.691,22.9882]
[1645210801167,111.6,90.747,90.691,22.9882]
[1645210801367,5.511,90.746,90.691,22.9882]
[1645210801565,5.511,90.748,90.691,22.9882]
[1645210801765,5.511,90.748,90.692,0.55146206]
[1645210802168,0.55688822,90.749,90.7,16.5434]
[1645210802367,0.55688822,90.749,90.701,23.0194]
[1645210802869,0.55688822,90.749,90.702,5.511]
[1645210803069,0.55688822,90.749,90.71,16.5418]
[1645210803268,0.55688822,90.749,90.72,16.02]
[1645210803469,0.55688822,90.749,90.721,30.4957]
[1645210803692,0.55688822,90.749,90.722,22.899]
[1645210803869,0.55688822,90.749,90.723,5.51]
[1645210803870,0.04,90.748,90.723,5.51]
[1645210804069,0.04,90.748,90.724,6.0]
[1645210804273,0.04,90.748,90.73,16.536]
[1645210804471,1.55722331,90.803,90.74,16.02]
[1645210804672,1.55722331,90.803,90.741,5.508]
[1645210804874,1.55722331,90.811,90.741,13.1573831]
[1645210805071,1.55722331,90.816,90.742,6.25]
[1645210805272,1.55722331,90.821,90.744,111.6]
[1645210805472,1.55722331,90.822,90.745,11.757]
[1645210805671,53.21087895,90.821,90.76,16.02]
[1645210805873,1.55722331,90.818,90.761,5.507]
[1645210806073,5.507,90.817,90.76,16.02]
[1645210806275,5.507,90.817,90.744,5.507]
[1645210806473,1.55722331,90.811,90.744,5.507]
[1645210806673,1.55722331,90.816,90.744,5.507]
[1645210807076,1.55722331,90.817,90.744,5.507]
[1645210807277,1.55722331,90.812,90.743,22.8412]
[1645210807476,5.507,90.811,90.744,5.507]
[1645210807676,7.06422331,90.812,90.743,22.8412]
[1645210808076,1.55722331,90.811,90.743,22.8412]
[1645210808277,5.508,90.81,90.743,22.8412]
[1645210808476,111.6,90.809,90.75,16.5352]
[1645210808677,111.6,90.807,90.75,16.5352]
[1645210808879,5.507,90.806,90.75,16.5352]
[1645210809277,5.507,90.806,90.743,22.8412]
[1645210809785,111.6,90.805,90.743,22.8412]
[1645210810383,16.5364,90.8,90.743,22.8412]
[1645210811595,111.6,90.799,90.742,5.508]
[1645210811896,111.6,90.789,90.741,5.02]
[1645210812095,2.6293831,90.799,90.741,5.02]
[1645210812096,1.55722331,90.779,90.741,5.02]
[1645210812295,111.6,90.777,90.741,5.02]
[1645210812495,113.15722331,90.775,90.741,5.02]
[1645210812695,113.15722331,90.773,90.741,5.02]
[1645210812896,111.6,90.769,90.741,5.02]
[1645210813097,111.6,90.767,90.741,5.02]
[1645210813299,111.6,90.765,90.741,5.02]
[1645210813498,5.509,90.764,90.741,5.02]
[1645210814500,16.5461,90.76,90.741,5.02]
[1645210814701,5.509,90.759,90.741,5.02]
[1645210815301,5.509,90.759,90.7,4.61938129]
[1645210815501,5.509,90.759,90.691,5.509]
[1645210815900,5.509,90.759,90.7,16.544]
[1645210817105,111.6,90.758,90.7,16.544]
[1645210817905,16.5457,90.75,90.69,16.5457]
[1645210818206,52.30010118,90.749,90.691,5.511]
[1645210818406,5.511,90.76,90.691,5.511]
[1645210818605,5.511,90.762,90.685,5.511]
[1645210818812,7.06822331,90.765,90.685,5.511]
[1645210819009,5.511,90.765,90.69,16.02]
[1645210819207,5.511,90.765,90.691,5.511]
[1645210819407,40.95251665,90.764,90.691,5.511]
[1645210819606,5.511,90.763,90.691,5.511]
[1645210820007,111.6,90.762,90.691,5.511]
[1645210820211,111.6,90.76,90.691,5.511]
[1645210820407,5.511,90.759,90.691,5.511]
[1645210821009,5.511,90.759,90.692,2.6293831]
[1645210821210,5.511,90.764,90.693,5.511]
[1645210821408,5.51,90.765,90.693,5.511]
[1645210821610,5.51,90.766,90.693,5.511]
[1645210821808,5.51,90.767,90.694,22.9371]
[1645210822008,7.06722331,90.767,90.694,22.9371]
[1645210822208,5.51,90.767,90.694,22.9371]
[1645210822410,5.51,90.767,90.7,16.5438]
[1645210823010,117.11,90.767,90.7,16.5438]
[1645210823413,118.66722331,90.767,90.7,16.5438]
[1645210823614,1.55722331,90.763,90.7,16.5438]
[1645210823812,111.6,90.761,90.7,16.5438]
[1645210824013,16.5455,90.75,90.7,16.5438]
[1645210826415,16.5455,90.75,90.694,22.9371]
[1645210828915,111.6,90.759,90.694,22.9371]
[1645210829518,16.5454,90.76,90.694,22.9371]
[1645210829718,5.511,90.759,90.7,16.5443]
[1645210829917,1.55722331,90.775,90.701,5.51]
[1645210830117,5.51,90.774,90.696,5.51]
[1645210830416,7.06722331,90.774,90.695,5.51]
[1645210830617,111.6,90.772,90.71,16.5424]
[1645210830817,111.6,90.77,90.695,5.51]
[1645210831017,111.6,90.768,90.695,5.51]
[1645210831217,111.6,90.766,90.694,22.9371]
[1645210831618,111.6,90.764,90.694,22.9371]
[1645210831818,111.6,90.762,90.694,22.9371]
[1645210832025,111.6,90.76,90.694,22.9371]
[1645210832220,111.6,90.758,90.694,22.9371]
[1645210833824,111.6,90.763,90.694,22.9371]
[1645210834024,111.6,90.761,90.694,22.9371]
[1645210834226,111.6,90.759,90.694,22.9371]
[1645210834424,19.4289526,90.788,90.694,22.9371]
[1645210834425,7.61879545,90.864,90.701,111.6]
[1645210834631,114.6,90.977,90.803,2.6293831]
[1645210834632,1.5531544,90.822,90.803,2.6293831]
[1645210834828,6.24383518,90.911,90.81,16.02]
[1645210835026,4.1594632,90.926,90.821,111.6]
[1645210835226,4.1594632,90.926,90.831,111.6]
[1645210835425,4.1594632,90.926,90.88,16.5083]
[1645210835627,6.24383518,90.964,90.881,5.5]
[1645210835827,6.24383518,90.925,90.881,5.5]
[1645210836025,6.24383518,90.963,90.881,8.1293831]
[1645210836225,5.25,90.962,90.882,2.6293831]
[1645210836426,47.26893265,90.96,90.883,5.749]
[1645210836625,47.26893265,90.96,90.883,5.499]
[1645210836826,5.499,90.959,90.883,5.499]
[1645210837127,5.499,90.959,90.89,55.0083]
[1645210837326,47.26893265,90.96,90.9,16.02]
[1645210837728,5.498,90.959,90.9,216.33]
[1645210838326,5.498,90.959,90.9,232.8344]
[1645210838528,4.998,90.959,90.9,232.8344]
[1645210839126,47.26893265,90.96,90.9,216.33]
[1645210839527,47.26893265,90.96,90.91,200.31]
[1645210839728,47.26893265,90.96,90.92,16.02]
[1645210842332,47.26893265,90.96,90.92,32.5217]
[1645210842931,0.420421,90.968,90.92,32.5217]
[1645210843130,0.420421,90.968,90.921,5.497]
[1645210843530,0.420421,90.968,90.93,16.4991]
[1645210843730,0.420421,90.968,90.94,16.02]
[1645210846056,0.420421,90.968,90.93,16.02]
[1645210846057,5.497,90.967,90.93,16.02]
[1645210846255,55.05773118,90.966,90.92,16.02]
[1645210846455,5.497,90.965,90.91,16.02]
[1645210846655,5.497,90.965,90.92,16.02]
[1645210847456,55.05773118,90.966,90.92,16.02]
[1645210848556,55.05773118,90.966,90.867,5.497]
[1645210848557,111.6,90.964,90.867,5.497]
[1645210848757,5.499,90.963,90.87,16.02]
[1645210848957,5.499,90.965,90.87,16.02]
[1645210849157,5.499,90.965,90.871,5.499]
[1645210849557,5.499,90.965,90.87,16.02]
[1645210850358,16.5117,90.96,90.87,32.5298]
[1645210850657,5.499,90.959,90.871,5.499]
[1645210851058,5.499,90.959,90.87,32.5298]
[1645210852564,5.499,90.959,90.871,5.499]
[1645210853961,111.6,90.958,90.87,32.5298]
[1645210854163,53.31598996,90.949,90.87,16.02]
[1645210854363,5.499,90.948,90.87,16.02]
[1645210855164,5.499,90.948,90.871,5.5]
[1645210855361,5.499,90.948,90.87,16.02]
[1645210855561,5.499,90.948,90.871,5.5]
[1645210855763,111.6,90.947,90.871,5.5]
[1645210855961,111.6,90.945,90.87,16.02]
[1645210856361,111.6,90.943,90.87,16.02]
[1645210856563,111.6,90.939,90.87,16.02]
[1645210856763,111.6,90.937,90.841,5.5]
[1645210856963,111.6,90.933,90.841,5.5]
[1645210857163,111.6,90.931,90.841,5.5]
[1645210857364,111.6,90.929,90.841,5.5]
[1645210857562,111.6,90.927,90.841,5.5]
[1645210857766,111.6,90.925,90.841,5.5]
[1645210857963,111.6,90.923,90.841,5.5]
[1645210858164,111.6,90.919,90.841,5.5]
[1645210858563,117.101,90.918,90.841,5.5]
[1645210860464,117.101,90.918,90.84,32.5358]
[1645210860664,5.501,90.918,90.84,32.5358]
[1645210860864,5.501,90.919,90.842,2.6293831]
[1645210861065,5.501,90.919,90.85,16.5149]
[1645210861269,5.501,90.919,90.86,16.02]
[1645210861566,47.68591373,90.92,90.861,5.501]
[1645210862467,47.68591373,90.92,90.86,32.5332]
[1645210863365,5.501,90.949,90.86,32.5332]
[1645210863565,55.0454,90.98,90.87,16.5115]
[1645210863566,5.5,90.967,90.87,16.5115]
[1645210863763,5.5,90.967,90.861,8.3793831]
[1645210863764,5.5,90.967,90.88,16.02]
[1645210863965,5.5,90.967,90.89,16.02]
[1645210864165,112.020421,90.968,90.9,16.02]
[1645210864368,0.420421,90.968,90.901,5.498]
[1645210864566,0.420421,90.968,90.901,8.1273831]
[1645210864765,0.420421,90.968,90.91,16.5047]
[1645210864967,0.420421,90.968,90.911,5.498]
[1645210865166,0.420421,90.968,90.901,5.498]
[1645210865369,0.420421,90.968,90.9,16.02]
[1645210865972,112.020421,90.968,90.9,32.5267]
[1645210866170,5.498,90.967,90.9,32.5267]
[1645210866370,112.020421,90.968,90.9,32.5267]
[1645210867077,5.498,90.967,90.9,32.5267]
[1645210867271,0.420421,90.968,90.9,32.5267]
[1645210867875,0.420421,90.968,90.91,16.505]
[1645210868673,0.420421,90.968,90.92,16.02]
[1645210868873,0.420421,90.968,90.921,5.497]
[1645210869675,0.420421,90.968,90.93,16.4982]
[1645210869874,0.420421,90.968,90.94,16.02]
[1645210871177,0.420421,90.968,90.94,32.5196]
[1645210879109,0.420421,90.968,90.941,2.6293831]
[1645210879307,0.420421,90.968,90.95,16.4937]
[1645210879507,0.420421,90.968,90.96,16.02]
[1645210879709,0.420421,90.968,90.961,5.496]
[1645210880409,0.000421,90.968,90.961,5.496]
[1645210880611,1.2579904,91.004,90.97,16.4901]
[1645210880912,1.2579904,91.004,90.98,16.02]
[1645210881909,1.2579904,91.004,90.98,32.5101]
[1645210882707,1.2579904,91.004,90.981,5.495]
[1645210883108,1.2579904,91.004,90.98,32.5101]
[1645210885010,1.2579904,91.004,90.98,32.5301]
[1645210889413,1.2579904,91.004,90.98,16.04]
[1645210889813,1.2579904,91.004,90.981,5.495]
[1645210890915,1.2579904,91.004,90.98,16.02]
[1645210892216,51.42982429,90.993,90.98,16.02]
[1645210892814,1.2579904,91.004,90.98,16.02]
[1645210894016,53.15681953,90.996,90.98,16.02]
[1645210894816,53.15681953,90.996,90.971,0.02]
[1645210904631,5.495,90.993,90.971,0.02]
[1645210904830,6.2324703,90.992,90.971,0.02]
[1645210905030,5.495,90.991,90.971,0.02]
[1645210905431,5.495,90.993,90.95,0.02]
[1645210905631,6.23242616,90.992,90.95,0.02]
[1645210905831,5.496,90.991,90.95,0.02]
[1645210906430,5.496,90.993,90.95,0.02]
[1645210907131,53.15681953,90.996,90.95,0.02]
[1645210907631,53.15681953,90.996,90.951,2.6293831]
[1645210907832,5.496,91.019,90.951,2.6293831]
[1645210908031,5.496,91.032,90.95,16.04]
[1645210908230,5.914221,91.039,90.95,16.04]
[1645210908431,5.914221,91.039,90.951,114.4793831]
[1645210908730,0.418221,91.039,90.951,2.6293831]
[1645210908933,54.48063437,90.993,90.95,34.79048552]
[1645210909130,54.48063437,90.993,90.95,16.04]
[1645210909530,54.48063437,90.993,90.95,0.02]
[1645210910730,54.48063437,90.993,90.951,0.02]
[1645210911543,5.496,91.008,90.951,0.02]
[1645210911733,5.496,91.023,90.952,2.6293831]
[1645210911932,0.418221,91.039,90.953,5.496]
[1645210912143,5.496,91.038,90.953,5.496]
[1645210912540,51.44049248,91.017,90.954,2.6293831]
[1645210912739,51.44049248,91.017,90.955,5.496]
[1645210913138,51.44049248,91.017,90.955,8.1253831]
[1645210913539,45.1227661,91.003,90.955,5.496]
[1645210913746,45.1227661,91.003,90.952,5.496]
[1645210913941,5.496,91.037,90.952,5.496]
[1645210914145,8.486e-05,90.994,90.953,2.8793831]
[1645210914442,8.486e-05,90.994,90.954,8.1253831]
[1645210914842,8.486e-05,90.994,90.955,2.6293831]
[1645210915041,8.486e-05,90.994,90.956,5.496]
[1645210915343,8.486e-05,90.994,90.97,16.02]
[1645210915543,8.486e-05,90.994,90.971,5.495]
[1645210918254,8.486e-05,90.994,90.97,16.02]
[1645210919150,8.486e-05,90.994,90.95,16.02]
[1645210920964,111.6,90.992,90.92,16.02]
[1645210921165,8.486e-05,90.994,90.9,16.02]
[1645210921166,111.6,90.988,90.9,16.02]
[1645210921367,42.50194605,90.989,90.89,16.02]
[1645210921368,16.5069,90.98,90.89,16.02]
[1645210921564,123.3305667,90.979,90.89,16.02]
[1645210921765,6.2325667,90.978,90.891,5.498]
[1645210922069,5.498,90.977,90.891,8.1273831]
[1645210922264,5.498,90.986,90.892,2.6293831]
[1645210922469,6.23294295,90.985,90.893,5.498]
[1645210922664,5.498,90.984,90.893,5.498]
[1645210922865,5.498,90.984,90.894,2.6293831]
[1645210923066,5.498,90.986,90.895,5.498]
[1645210923367,111.6,90.984,90.896,2.6293831]
[1645210923568,111.6,90.982,90.91,16.02]
[1645210923768,111.6,90.98,90.91,16.02]
[1645210923967,111.6,90.978,90.91,16.02]
[1645210924169,5.497,90.977,90.91,16.02]
[1645210924573,5.497,90.986,90.91,16.02]
[1645210924970,111.6,90.985,90.91,16.02]
[1645210925170,111.6,90.983,90.91,16.02]
[1645210925371,111.6,90.981,90.91,16.02]
[1645210925571,111.6,90.979,90.91,16.02]
[1645210925770,111.6,90.977,90.91,16.02]
[1645210925972,111.6,90.973,90.91,16.02]
[1645210926171,111.6,90.971,90.91,16.02]
[1645210926473,111.6,90.969,90.91,16.02]
[1645210926670,5.498,90.968,90.91,16.02]
[1645210927073,5.498,90.973,90.91,16.02]
[1645210927272,111.6,90.972,90.91,16.02]
[1645210927469,111.6,90.969,90.91,16.02]
[1645210927674,5.498,90.968,90.91,16.02]
[1645210927874,5.498,90.969,90.91,16.02]
[1645210929077,117.098,90.969,90.91,16.02]
[1645210929279,5.498,90.969,90.91,16.02]
[1645210929879,5.498,90.973,90.88,16.02]
[1645210930078,111.6,90.972,90.88,16.02]
[1645210930278,111.6,90.97,90.88,16.02]
[1645210930578,111.6,90.959,90.88,16.02]
[1645210930877,158.43692123,90.957,90.88,16.02]
[1645210931080,111.6,90.955,90.88,16.02]
[1645210931281,111.6,90.953,90.88,16.02]
[1645210931479,111.6,90.951,90.86,16.02]
[1645210931681,111.6,90.949,90.85,16.02]
[1645210932080,111.6,90.947,90.85,16.02]
[1645210932278,111.6,90.945,90.85,16.02]
[1645210932481,111.6,90.941,90.85,16.02]
[1645210932680,39.63942249,90.942,90.85,16.02]
[1645210932681,111.6,90.939,90.85,16.02]
[1645210932882,111.6,90.937,90.85,16.02]
[1645210933080,111.6,90.935,90.85,16.02]
[1645210933280,111.6,90.933,90.85,16.02]
[1645210933480,39.63942249,90.942,90.85,16.02]
[1645210933481,111.6,90.931,90.85,16.02]
[1645210933680,51.19124682,90.928,90.85,16.02]
[1645210933879,162.79124682,90.928,90.85,16.02]
[1645210934080,5.501,90.927,90.85,16.02]
[1645210936081,51.19124682,90.928,90.85,16.02]
[1645210936480,51.19124682,90.928,90.85,32.5332]
[1645210936980,51.19124682,90.928,90.851,5.501]
[1645210937785,5.501,90.927,90.85,32.5332]
[1645210938184,51.19124682,90.928,90.86,16.5117]
[1645210938383,51.19124682,90.928,90.87,16.02]
[1645210938581,5.5,90.927,90.87,16.02]
[1645210938983,51.19124682,90.928,90.87,16.02]
[1645210940187,111.6,90.926,90.87,16.02]
[1645210940388,111.6,90.924,90.85,16.5138]
[1645210940587,111.6,90.924,90.85,32.5338]
[1645210941391,5.501,90.927,90.85,32.5338]
[1645210942290,111.6,90.926,90.85,16.02]
[1645210942490,111.6,90.924,90.85,16.02]
[1645210942690,111.6,90.922,90.85,16.02]
[1645210942896,111.6,90.909,90.85,16.02]
[1645210943093,163.61205346,90.908,90.85,16.02]
[1645210943692,111.6,90.906,90.85,16.02]
[1645210943894,111.6,90.904,90.85,16.02]
[1645210944394,111.6,90.902,90.85,16.02]
[1645210944592,16.5186,90.9,90.85,16.02]
[1645210948698,5.502,90.919,90.85,16.02]
[1645210948898,111.6,90.939,90.851,23.5385]
[1645210949197,117.1,90.938,90.851,23.5385]
[1645210949597,49.49070644,90.937,90.851,23.5385]
[1645210949798,117.1,90.936,90.851,23.5385]
[1645210950398,16.5138,90.93,90.851,23.5385]
[1645210950600,5.501,90.929,90.851,23.5385]
[1645210950798,111.6,90.928,90.851,23.5385]
[1645210950999,5.501,90.927,90.851,23.5385]
[1645210951599,5.501,90.929,90.851,23.5385]
[1645210951799,16.5138,90.93,90.86,16.5129]
[1645210952001,16.5138,90.93,90.861,5.5]
[1645210952203,111.6,90.929,90.861,5.5]
[1645210952399,16.5138,90.93,90.861,5.5]
[1645210952802,16.5138,90.93,90.86,32.5329]
[1645210953899,5.5,90.929,90.86,32.5329]
[1645210954300,111.6,90.928,90.86,32.5329]
[1645210954502,111.6,90.926,90.86,16.02]
[1645210954701,111.6,90.922,90.86,16.02]
[1645210954901,16.5185,90.9,90.84,16.02]
[1645210955100,16.5185,90.9,90.815,5.5]
[1645210955101,16.5185,90.9,90.83,16.02]
[1645210955601,111.6,90.899,90.83,32.5385]
[1645210956401,16.5185,90.9,90.83,32.5385]
[1645210958206,7.05523125,90.905,90.83,32.5385]
[1645210958412,1.55323125,90.906,90.85,16.5145]
[1645210958605,1.55323125,90.914,90.85,32.5345]
[1645210958806,1.55323125,90.918,90.851,5.501]
[1645210959105,1.55323125,90.923,90.851,5.501]
[1645210959705,1.55323125,90.917,90.86,16.512]
[1645210959906,1.55323125,90.92,90.87,16.02]
[1645210960106,1.55323125,90.92,90.833,24.7495]
[1645210960107,47.83453864,90.923,90.871,5.5]
[1645210960306,1.55323125,90.918,90.834,5.5]
[1645210960507,1.55323125,90.908,90.83,5.502]